[Event "Titled Tuesday Blitz July 25 Late 2023"]
[White "Panesar Vedant"]
[Black "Voege, Tobias"]
[WhiteFideId "35033018"]
[BlackFideId "1270513"]
[WhiteElo "2712"]
[BlackElo "2657"]
[Result "1-0"]
[Round "9"]
[TimeControl "180+2"]
[Date "2023.07.25"]
[WhiteClock "0:00:15"]
[BlackClock "0:00:12"]
[Board "24"]

1. d4 {[%clk 0:03:00]}  d5 {[%clk 0:02:59]} 2. c4 {[%clk 0:03:01]}  Nc6 {[%clk 0:03:00]} 3. Nf3 {[%clk 0:02:57]}  Bg4 {[%clk 0:02:59]} 4. cxd5 {[%clk 0:02:46]}  Bxf3 {[%clk 0:02:59]} 5. gxf3 {[%clk 0:02:47]}  Qxd5 {[%clk 0:02:59]} 6. e3 {[%clk 0:02:48]}  e5 {[%clk 0:02:59]} 7. Nc3 {[%clk 0:02:48]}  Bb4 {[%clk 0:03:00]} 8. Bd2 {[%clk 0:02:49]}  Bxc3 {[%clk 0:03:00]} 9. bxc3 {[%clk 0:02:49]}  Qd6 {[%clk 0:03:01]} 10. Qb3 {[%clk 0:02:45]}  Rb8 {[%clk 0:02:57]} 11. Rg1 {[%clk 0:02:42]}  Nge7 {[%clk 0:02:57]} 12. f4 {[%clk 0:02:30]}  exf4 {[%clk 0:02:55]} 13. e4 {[%clk 0:02:31]}  Ng6 {[%clk 0:02:55]} 14. e5 {[%clk 0:02:23]}  Qe7 {[%clk 0:02:37]} 15. Bg2 {[%clk 0:02:19]}  O-O {[%clk 0:02:33]} 16. O-O-O {[%clk 0:02:19]}  Na5 {[%clk 0:02:27]} 17. Qa4 {[%clk 0:02:11]}  b6 {[%clk 0:02:22]} 18. c4 {[%clk 0:01:58]}  c5 {[%clk 0:02:18]} 19. Rge1 {[%clk 0:01:22]}  cxd4 {[%clk 0:02:14]} 20. Bb4 {[%clk 0:01:20]}  Qg5 {[%clk 0:01:58]} 21. Bd5 {[%clk 0:01:09]}  Rfd8 {[%clk 0:01:30]} 22. e6 {[%clk 0:01:02]}  fxe6 {[%clk 0:01:24]} 23. Rxe6 {[%clk 0:00:54]}  Kh8 {[%clk 0:01:24]} 24. Rde1 {[%clk 0:00:51]}  h5 {[%clk 0:01:17]} 25. Qc2 {[%clk 0:00:37]}  f3+ {[%clk 0:00:37]} 26. Kb1 {[%clk 0:00:31]}  Nf4 {[%clk 0:00:33]} 27. R6e5 {[%clk 0:00:30]}  d3 {[%clk 0:00:20]} 28. Qd2 {[%clk 0:00:23]}  Qf6 {[%clk 0:00:19]} 29. Bc3 {[%clk 0:00:17]}  Qh6 {[%clk 0:00:16]} 30. Qxf4 {[%clk 0:00:16]}  Nxc4 {[%clk 0:00:14]} 31. Re8+ {[%clk 0:00:15]}  Kh7 {[%clk 0:00:13]} 32. Bg8+ {[%clk 0:00:15]}  Kh8 {[%clk 0:00:12]} 33. Qxh6# {[%clk 0:00:15]} 1-0


[Site "https://www.chess.com"]

[Event "Titled Tuesday Blitz July 25 Late 2023"]
[White "Ordekalog"]
[Black "Maksimovic, Bojan"]
[BlackFideId "14408120"]
[WhiteElo "2541"]
[BlackElo "2888"]
[Result "0-1"]
[Round "9"]
[TimeControl "180+2"]
[Date "2023.07.25"]
[WhiteClock "0:00:00"]
[BlackClock "0:00:35"]
[Board "27"]

1. e4 {[%clk 0:03:00]}  g6 {[%clk 0:02:58]} 2. d3 {[%clk 0:03:00]}  Nf6 {[%clk 0:02:59]} 3. f4 {[%clk 0:02:59]}  d5 {[%clk 0:02:58]} 4. e5 {[%clk 0:02:58]}  Nh5 {[%clk 0:02:59]} 5. Be2 {[%clk 0:02:44]}  Ng7 {[%clk 0:02:59]} 6. Nf3 {[%clk 0:02:43]}  h5 {[%clk 0:02:59]} 7. c4 {[%clk 0:02:39]}  d4 {[%clk 0:02:56]} 8. Nbd2 {[%clk 0:02:37]}  Nf5 {[%clk 0:02:55]} 9. Ne4 {[%clk 0:02:37]}  c5 {[%clk 0:02:54]} 10. Nfg5 {[%clk 0:02:34]}  Nc6 {[%clk 0:02:53]} 11. Bf3 {[%clk 0:02:30]}  Bh6 {[%clk 0:02:44]} 12. Qe2 {[%clk 0:02:27]}  Nh4 {[%clk 0:02:44]} 13. Bxh5 {[%clk 0:02:16]}  Bxg5 {[%clk 0:02:39]} 14. Bxg6 {[%clk 0:02:10]}  Nxg6 {[%clk 0:02:40]} 15. Nxg5 {[%clk 0:02:09]}  Kf8 {[%clk 0:02:33]} 16. Bd2 {[%clk 0:02:07]}  b6 {[%clk 0:02:18]} 17. O-O-O {[%clk 0:02:06]}  Bb7 {[%clk 0:02:08]} 18. e6 {[%clk 0:02:04]}  Qc7 {[%clk 0:01:50]} 19. exf7 {[%clk 0:01:43]}  Qd6 {[%clk 0:01:50]} 20. f5 {[%clk 0:01:42]}  Nge5 {[%clk 0:01:48]} 21. Rdf1 {[%clk 0:01:32]}  Nxf7 {[%clk 0:01:49]} 22. Ne6+ {[%clk 0:01:27]}  Ke8 {[%clk 0:01:49]} 23. Bf4 {[%clk 0:01:27]}  Qd7 {[%clk 0:01:41]} 24. f6 {[%clk 0:01:18]}  exf6 {[%clk 0:01:18]} 25. Nxc5+ {[%clk 0:01:17]}  Qe7 {[%clk 0:01:18]} 26. Qxe7+ {[%clk 0:01:16]}  Kxe7 {[%clk 0:01:19]} 27. Re1+ {[%clk 0:01:16]}  Nfe5 {[%clk 0:01:18]} 28. Nxb7 {[%clk 0:01:16]}  Rab8 {[%clk 0:01:18]} 29. Kd2 {[%clk 0:01:10]}  Rxb7 {[%clk 0:01:15]} 30. Re4 {[%clk 0:01:10]}  Kd6 {[%clk 0:01:14]} 31. b4 {[%clk 0:01:08]}  Rg7 {[%clk 0:01:11]} 32. g3 {[%clk 0:01:07]}  Nxb4 {[%clk 0:01:11]} 33. Rxd4+ {[%clk 0:01:07]}  Kc6 {[%clk 0:01:12]} 34. a3 {[%clk 0:00:57]}  Na6 {[%clk 0:01:10]} 35. Re4 {[%clk 0:00:55]}  Nc5 {[%clk 0:01:10]} 36. Rxe5 {[%clk 0:00:53]}  fxe5 {[%clk 0:01:06]} 37. Bxe5 {[%clk 0:00:54]}  Rgg8 {[%clk 0:01:06]} 38. Bxh8 {[%clk 0:00:53]}  Rxh8 {[%clk 0:01:07]} 39. h4 {[%clk 0:00:53]}  Kd6 {[%clk 0:01:07]} 40. Ke3 {[%clk 0:00:49]}  Re8+ {[%clk 0:01:07]} 41. Kd4 {[%clk 0:00:49]}  Rg8 {[%clk 0:01:07]} 42. Rh3 {[%clk 0:00:49]}  Ke6 {[%clk 0:00:55]} 43. Ke3 {[%clk 0:00:44]}  Kf5 {[%clk 0:00:55]} 44. d4 {[%clk 0:00:43]}  Re8+ {[%clk 0:00:55]} 45. Kf3 {[%clk 0:00:43]}  Nb3 {[%clk 0:00:48]} 46. g4+ {[%clk 0:00:42]}  Kf6 {[%clk 0:00:49]} 47. d5 {[%clk 0:00:39]}  Nd2+ {[%clk 0:00:49]} 48. Kf2 {[%clk 0:00:33]}  Nxc4 {[%clk 0:00:49]} 49. Rf3+ {[%clk 0:00:30]}  Kg6 {[%clk 0:00:48]} 50. Rc3 {[%clk 0:00:29]}  Re4 {[%clk 0:00:43]} 51. Kf3 {[%clk 0:00:21]}  Rd4 {[%clk 0:00:43]} 52. a4 {[%clk 0:00:18]}  Ne5+ {[%clk 0:00:43]} 53. Ke3 {[%clk 0:00:16]}  Rxg4 {[%clk 0:00:43]} 54. Rc7 {[%clk 0:00:16]}  Rxa4 {[%clk 0:00:43]} 55. d6 {[%clk 0:00:14]}  Kf6 {[%clk 0:00:36]} 56. d7 {[%clk 0:00:13]}  Ke7 {[%clk 0:00:37]} 57. d8=Q+ {[%clk 0:00:09]}  Kxd8 {[%clk 0:00:37]} 58. Rg7 {[%clk 0:00:09]}  Rxh4 {[%clk 0:00:35]} 59. Rxa7 {[%clk 0:00:09]}  Nd7 {[%clk 0:00:34]} 60. Kd2 {[%clk 0:00:08]}  Ke7 {[%clk 0:00:34]} 61. Kc3 {[%clk 0:00:08]}  Kd6 {[%clk 0:00:34]} 62. Ra8 {[%clk 0:00:08]}  b5 {[%clk 0:00:35]} 63. Rg8 {[%clk 0:00:07]}  b4+ {[%clk 0:00:35]} 64. Kb3 {[%clk 0:00:07]}  Nc5+ {[%clk 0:00:36]} 65. Kb2 {[%clk 0:00:07]}  Rh2+ {[%clk 0:00:37]} 66. Kb1 {[%clk 0:00:06]}  b3 {[%clk 0:00:37]} 67. Rg6+ {[%clk 0:00:06]}  Kd5 {[%clk 0:00:37]} 68. Rg5+ {[%clk 0:00:06]}  Kc4 {[%clk 0:00:38]} 69. Rg4+ {[%clk 0:00:07]}  Kc3 {[%clk 0:00:39]} 70. Rg3+ {[%clk 0:00:07]}  Nd3 {[%clk 0:00:40]} 71. Rg1 {[%clk 0:00:07]}  Ra2 {[%clk 0:00:40]} 72. Rg8 {[%clk 0:00:06]}  Rb2+ {[%clk 0:00:40]} 73. Ka1 {[%clk 0:00:05]}  Ra2+ {[%clk 0:00:41]} 74. Kb1 {[%clk 0:00:06]}  Rb2+ {[%clk 0:00:42]} 75. Ka1 {[%clk 0:00:06]}  Rh2 {[%clk 0:00:42]} 76. Rc8+ {[%clk 0:00:05]}  Kd4 {[%clk 0:00:43]} 77. Rd8+ {[%clk 0:00:05]}  Kc4 {[%clk 0:00:44]} 78. Rc8+ {[%clk 0:00:05]}  Nc5 {[%clk 0:00:45]} 79. Rc7 {[%clk 0:00:05]}  Kb4 {[%clk 0:00:43]} 80. Rc8 {[%clk 0:00:04]}  Ka3 {[%clk 0:00:43]} 81. Ra8+ {[%clk 0:00:04]}  Na4 {[%clk 0:00:43]} 82. Rh8 {[%clk 0:00:00]}  Rxh8 {[%clk 0:00:35]} 0-1


[Site "https://www.chess.com"]

[Event "Titled Tuesday Blitz July 25 Late 2023"]
[White "Omelja, Artem"]
[Black "Ibarra Jerez, Jose Carlos"]
[WhiteFideId "14119846"]
[BlackFideId "2226332"]
[WhiteElo "2640"]
[BlackElo "2883"]
[Result "0-1"]
[Round "9"]
[TimeControl "180+2"]
[Date "2023.07.25"]
[WhiteClock "0:00:00"]
[BlackClock "0:00:33"]
[Board "28"]

1. d4 {[%clk 0:02:23]}  Nf6 {[%clk 0:02:57]} 2. c4 {[%clk 0:02:22]}  d6 {[%clk 0:02:57]} 3. Nc3 {[%clk 0:02:22]}  e5 {[%clk 0:02:58]} 4. Bg5 {[%clk 0:02:18]}  h6 {[%clk 0:02:56]} 5. Bh4 {[%clk 0:02:18]}  exd4 {[%clk 0:02:52]} 6. Qxd4 {[%clk 0:02:17]}  Nc6 {[%clk 0:02:50]} 7. Qd1 {[%clk 0:02:17]}  Be6 {[%clk 0:02:48]} 8. e3 {[%clk 0:02:17]}  g5 {[%clk 0:02:42]} 9. Bg3 {[%clk 0:02:15]}  Bg7 {[%clk 0:02:42]} 10. Nf3 {[%clk 0:02:14]}  d5 {[%clk 0:02:19]} 11. c5 {[%clk 0:01:53]}  Ne4 {[%clk 0:02:15]} 12. Nd4 {[%clk 0:01:45]}  Nxd4 {[%clk 0:01:45]} 13. exd4 {[%clk 0:01:44]}  c6 {[%clk 0:01:42]} 14. Be2 {[%clk 0:01:21]}  Nxg3 {[%clk 0:01:34]} 15. hxg3 {[%clk 0:01:21]}  Qf6 {[%clk 0:01:35]} 16. Qb3 {[%clk 0:01:20]}  Qxd4 {[%clk 0:01:26]} 17. Qxb7 {[%clk 0:01:19]}  O-O {[%clk 0:01:26]} 18. Qxc6 {[%clk 0:01:16]}  Rfc8 {[%clk 0:01:23]} 19. Qa4 {[%clk 0:01:15]}  Qxc5 {[%clk 0:01:21]} 20. O-O {[%clk 0:01:15]}  Rab8 {[%clk 0:01:18]} 21. Rac1 {[%clk 0:00:43]}  Rxb2 {[%clk 0:01:12]} 22. Ba6 {[%clk 0:00:36]}  Bxc3 {[%clk 0:01:06]} 23. Bxc8 {[%clk 0:00:35]}  Qxc8 {[%clk 0:01:06]} 24. Rfd1 {[%clk 0:00:29]}  Qc5 {[%clk 0:01:01]} 25. Rc2 {[%clk 0:00:17]}  Rxc2 {[%clk 0:01:01]} 26. Qxc2 {[%clk 0:00:18]}  d4 {[%clk 0:00:56]} 27. Rb1 {[%clk 0:00:17]}  Kg7 {[%clk 0:00:49]} 28. Rb7 {[%clk 0:00:11]}  Qc4 {[%clk 0:00:38]} 29. Qe4 {[%clk 0:00:09]}  d3 {[%clk 0:00:36]} 30. Qf3 {[%clk 0:00:00]}  Bd5 {[%clk 0:00:33]} 0-1


[Site "https://www.chess.com"]

[Event "Titled Tuesday Blitz July 25 Late 2023"]
[White "Oro, Faustino"]
[Black "Barria Santos, Jose Guilherme"]
[WhiteFideId "20000197"]
[BlackFideId "1939300"]
[WhiteElo "2781"]
[BlackElo "2610"]
[Result "1-0"]
[Round "9"]
[TimeControl "180+2"]
[Date "2023.07.25"]
[WhiteClock "0:00:13"]
[BlackClock "0:00:43"]
[Board "30"]

1. e4 {[%clk 0:03:00]}  c5 {[%clk 0:02:58]} 2. Nf3 {[%clk 0:03:00]}  e6 {[%clk 0:02:58]} 3. d4 {[%clk 0:02:59]}  cxd4 {[%clk 0:02:59]} 4. Nxd4 {[%clk 0:03:00]}  Nc6 {[%clk 0:02:57]} 5. Nc3 {[%clk 0:02:58]}  Nf6 {[%clk 0:02:48]} 6. Ndb5 {[%clk 0:02:54]}  Bc5 {[%clk 0:02:37]} 7. Bf4 {[%clk 0:02:51]}  O-O {[%clk 0:02:33]} 8. Bc7 {[%clk 0:02:51]}  Qe7 {[%clk 0:02:33]} 9. Bd6 {[%clk 0:02:51]}  Bxd6 {[%clk 0:02:34]} 10. Qxd6 {[%clk 0:02:52]}  Qd8 {[%clk 0:02:33]} 11. Nd4 {[%clk 0:02:41]}  Ne8 {[%clk 0:02:29]} 12. Nxc6 {[%clk 0:02:40]}  bxc6 {[%clk 0:02:30]} 13. Qd2 {[%clk 0:02:39]}  d5 {[%clk 0:02:26]} 14. Bd3 {[%clk 0:02:34]}  Rb8 {[%clk 0:02:25]} 15. Rb1 {[%clk 0:02:26]}  Nf6 {[%clk 0:02:20]} 16. exd5 {[%clk 0:02:13]}  exd5 {[%clk 0:02:21]} 17. O-O {[%clk 0:02:12]}  Be6 {[%clk 0:02:18]} 18. Ne2 {[%clk 0:02:08]}  Qd6 {[%clk 0:02:12]} 19. b3 {[%clk 0:02:04]}  Nd7 {[%clk 0:02:07]} 20. Rfe1 {[%clk 0:01:59]}  Qb4 {[%clk 0:01:52]} 21. Qe3 {[%clk 0:01:53]}  a5 {[%clk 0:01:47]} 22. Nd4 {[%clk 0:01:46]}  Qb6 {[%clk 0:01:26]} 23. Nxe6 {[%clk 0:01:44]}  Qxe3 {[%clk 0:01:27]} 24. Rxe3 {[%clk 0:01:44]}  fxe6 {[%clk 0:01:28]} 25. Rxe6 {[%clk 0:01:45]}  Rf6 {[%clk 0:01:29]} 26. Rbe1 {[%clk 0:01:34]}  a4 {[%clk 0:01:27]} 27. Rxf6 {[%clk 0:01:25]}  Nxf6 {[%clk 0:01:28]} 28. Re6 {[%clk 0:01:19]}  axb3 {[%clk 0:01:29]} 29. axb3 {[%clk 0:01:18]}  c5 {[%clk 0:01:30]} 30. f3 {[%clk 0:01:16]}  Rc8 {[%clk 0:01:30]} 31. Kf2 {[%clk 0:01:13]}  Kf7 {[%clk 0:01:28]} 32. Ra6 {[%clk 0:01:11]}  Rc7 {[%clk 0:01:27]} 33. Ke3 {[%clk 0:01:07]}  g6 {[%clk 0:01:27]} 34. c3 {[%clk 0:00:56]}  c4 {[%clk 0:01:26]} 35. bxc4 {[%clk 0:00:53]}  dxc4 {[%clk 0:01:27]} 36. Be2 {[%clk 0:00:51]}  Nd5+ {[%clk 0:01:23]} 37. Kd4 {[%clk 0:00:45]}  Nf4 {[%clk 0:01:23]} 38. Bxc4+ {[%clk 0:00:45]}  Kg7 {[%clk 0:01:24]} 39. g3 {[%clk 0:00:46]}  Nh5 {[%clk 0:01:24]} 40. Bd5 {[%clk 0:00:42]}  Nf6 {[%clk 0:01:19]} 41. c4 {[%clk 0:00:42]}  Nd7 {[%clk 0:01:19]} 42. f4 {[%clk 0:00:36]}  Kf8 {[%clk 0:01:13]} 43. Ra5 {[%clk 0:00:29]}  Nf6 {[%clk 0:01:11]} 44. c5 {[%clk 0:00:25]}  Ke7 {[%clk 0:01:10]} 45. Bf3 {[%clk 0:00:21]}  Rd7+ {[%clk 0:01:07]} 46. Ke3 {[%clk 0:00:20]}  Rc7 {[%clk 0:01:06]} 47. Rb5 {[%clk 0:00:19]}  Kd7 {[%clk 0:01:00]} 48. c6+ {[%clk 0:00:19]}  Kd6 {[%clk 0:01:00]} 49. Rb8 {[%clk 0:00:15]}  Nd5+ {[%clk 0:00:56]} 50. Kd4 {[%clk 0:00:15]}  Ne7 {[%clk 0:00:52]} 51. Rd8+ {[%clk 0:00:15]}  Ke6 {[%clk 0:00:53]} 52. Kc5 {[%clk 0:00:15]}  h5 {[%clk 0:00:49]} 53. Rd6+ {[%clk 0:00:15]}  Kf7 {[%clk 0:00:47]} 54. Rd7 {[%clk 0:00:15]}  Rc8 {[%clk 0:00:43]} 55. Kd6 {[%clk 0:00:13]} 1-0


[Site "https://www.chess.com"]

[Event "Titled Tuesday Blitz July 25 Late 2023"]
[White "Tristan, Leonardo"]
[Black "Attacker_2006"]
[WhiteFideId "113816"]
[WhiteElo "2759"]
[BlackElo "2583"]
[Result "1-0"]
[Round "9"]
[TimeControl "180+2"]
[Date "2023.07.25"]
[WhiteClock "0:00:27"]
[BlackClock "0:00:22"]
[Board "32"]

1. d4 {[%clk 0:03:00]}  Nf6 {[%clk 0:02:54]} 2. Nf3 {[%clk 0:03:01]}  d5 {[%clk 0:02:54]} 3. Bf4 {[%clk 0:03:01]}  e6 {[%clk 0:02:54]} 4. e3 {[%clk 0:03:01]}  Bd6 {[%clk 0:02:54]} 5. Nbd2 {[%clk 0:03:02]}  O-O {[%clk 0:02:49]} 6. c3 {[%clk 0:03:02]}  c5 {[%clk 0:02:48]} 7. Bd3 {[%clk 0:03:01]}  cxd4 {[%clk 0:02:44]} 8. Bxd6 {[%clk 0:02:56]}  Qxd6 {[%clk 0:02:43]} 9. exd4 {[%clk 0:02:56]}  Nc6 {[%clk 0:02:42]} 10. O-O {[%clk 0:02:27]}  e5 {[%clk 0:02:41]} 11. dxe5 {[%clk 0:02:27]}  Nxe5 {[%clk 0:02:42]} 12. Nxe5 {[%clk 0:02:28]}  Qxe5 {[%clk 0:02:43]} 13. Nf3 {[%clk 0:02:28]}  Qh5 {[%clk 0:02:43]} 14. Nd4 {[%clk 0:02:26]}  Bg4 {[%clk 0:02:41]} 15. Qb3 {[%clk 0:02:25]}  Rab8 {[%clk 0:02:38]} 16. Rfe1 {[%clk 0:02:25]}  b6 {[%clk 0:02:15]} 17. Nc6 {[%clk 0:02:15]}  Rbe8 {[%clk 0:02:11]} 18. Nxa7 {[%clk 0:02:11]}  Be2 {[%clk 0:02:06]} 19. Bxe2 {[%clk 0:02:02]}  Rxe2 {[%clk 0:02:07]} 20. Rxe2 {[%clk 0:01:54]}  Qxe2 {[%clk 0:02:08]} 21. Qxb6 {[%clk 0:01:54]}  Re8 {[%clk 0:01:50]} 22. h3 {[%clk 0:01:54]}  Ne4 {[%clk 0:01:48]} 23. Nc6 {[%clk 0:01:46]}  Nd2 {[%clk 0:01:45]} 24. h4 {[%clk 0:01:20]}  Qg4 {[%clk 0:01:34]} 25. Ne5 {[%clk 0:00:57]}  Qxh4 {[%clk 0:01:29]} 26. Qd4 {[%clk 0:00:55]}  Qh6 {[%clk 0:01:19]} 27. Qxd5 {[%clk 0:00:50]}  Qf4 {[%clk 0:01:10]} 28. Nxf7 {[%clk 0:00:44]}  Kf8 {[%clk 0:00:56]} 29. Qd6+ {[%clk 0:00:38]}  Qxd6 {[%clk 0:00:52]} 30. Nxd6 {[%clk 0:00:39]}  Re2 {[%clk 0:00:43]} 31. a4 {[%clk 0:00:34]}  Ke7 {[%clk 0:00:39]} 32. Nf5+ {[%clk 0:00:32]}  Kf6 {[%clk 0:00:39]} 33. Nd4 {[%clk 0:00:33]}  Re8 {[%clk 0:00:39]} 34. a5 {[%clk 0:00:32]}  Nc4 {[%clk 0:00:39]} 35. b4 {[%clk 0:00:32]}  Ra8 {[%clk 0:00:32]} 36. a6 {[%clk 0:00:30]}  Ke5 {[%clk 0:00:32]} 37. a7 {[%clk 0:00:29]}  Kd6 {[%clk 0:00:31]} 38. Nf5+ {[%clk 0:00:27]}  Kc6 {[%clk 0:00:31]} 39. Nxg7 {[%clk 0:00:27]}  Kb6 {[%clk 0:00:31]} 40. Nh5 {[%clk 0:00:27]}  Ne5 {[%clk 0:00:30]} 41. Nf6 {[%clk 0:00:27]}  h6 {[%clk 0:00:29]} 42. Nd5+ {[%clk 0:00:27]}  Kb7 {[%clk 0:00:30]} 43. f4 {[%clk 0:00:27]}  Nd3 {[%clk 0:00:29]} 44. c4 {[%clk 0:00:27]}  h5 {[%clk 0:00:27]} 45. c5 {[%clk 0:00:27]}  Kc6 {[%clk 0:00:26]} 46. Nb6 {[%clk 0:00:27]}  Rg8 {[%clk 0:00:22]} 47. a8=Q+ {[%clk 0:00:27]} 1-0


[Site "https://www.chess.com"]

[Event "Titled Tuesday Blitz July 25 Late 2023"]
[White "Yanchenko, Roman"]
[Black "Karamsetty, Jeevan"]
[WhiteFideId "4137329"]
[BlackFideId "2025337"]
[WhiteElo "2738"]
[BlackElo "2543"]
[Result "0-1"]
[Round "9"]
[TimeControl "180+2"]
[Date "2023.07.25"]
[WhiteClock "0:00:16"]
[BlackClock "0:00:23"]
[Board "36"]

1. d4 {[%clk 0:03:00]}  g6 {[%clk 0:02:59]} 2. Nf3 {[%clk 0:03:00]}  Bg7 {[%clk 0:03:00]} 3. Bf4 {[%clk 0:03:00]}  d6 {[%clk 0:02:59]} 4. e3 {[%clk 0:03:00]}  Nd7 {[%clk 0:03:00]} 5. Be2 {[%clk 0:03:00]}  e5 {[%clk 0:03:01]} 6. Bg3 {[%clk 0:02:59]}  Qe7 {[%clk 0:03:01]} 7. O-O {[%clk 0:02:58]}  Nh6 {[%clk 0:02:59]} 8. Nc3 {[%clk 0:02:56]}  c6 {[%clk 0:02:55]} 9. dxe5 {[%clk 0:02:55]}  Nxe5 {[%clk 0:02:48]} 10. Nxe5 {[%clk 0:02:27]}  dxe5 {[%clk 0:02:48]} 11. Ne4 {[%clk 0:02:27]}  Nf5 {[%clk 0:02:48]} 12. Bg4 {[%clk 0:02:27]}  O-O {[%clk 0:02:39]} 13. Bxf5 {[%clk 0:02:05]}  Bxf5 {[%clk 0:02:40]} 14. Qd6 {[%clk 0:02:05]}  Rfe8 {[%clk 0:02:31]} 15. Qxe7 {[%clk 0:01:52]}  Rxe7 {[%clk 0:02:32]} 16. Bh4 {[%clk 0:01:52]}  Rd7 {[%clk 0:02:26]} 17. Nf6+ {[%clk 0:01:52]}  Bxf6 {[%clk 0:02:25]} 18. Bxf6 {[%clk 0:01:53]}  Bxc2 {[%clk 0:02:10]} 19. Bxe5 {[%clk 0:01:50]}  Re8 {[%clk 0:02:08]} 20. Bc3 {[%clk 0:01:50]}  Red8 {[%clk 0:02:05]} 21. f3 {[%clk 0:01:47]}  Rd3 {[%clk 0:01:59]} 22. Kf2 {[%clk 0:01:46]}  c5 {[%clk 0:01:56]} 23. e4 {[%clk 0:01:31]}  b6 {[%clk 0:01:53]} 24. h4 {[%clk 0:01:16]}  h5 {[%clk 0:01:49]} 25. Kg3 {[%clk 0:01:06]}  Kf8 {[%clk 0:01:25]} 26. Kf4 {[%clk 0:00:46]}  Ke7 {[%clk 0:01:22]} 27. Rac1 {[%clk 0:00:42]}  Ba4 {[%clk 0:01:19]} 28. Kg5 {[%clk 0:00:38]}  Ke6 {[%clk 0:01:17]} 29. g4 {[%clk 0:00:24]}  Bd1 {[%clk 0:00:49]} 30. gxh5 {[%clk 0:00:20]}  gxh5 {[%clk 0:00:50]} 31. Kxh5 {[%clk 0:00:18]}  Bxf3+ {[%clk 0:00:44]} 32. Kg5 {[%clk 0:00:18]}  Bxe4 {[%clk 0:00:42]} 33. Rf6+ {[%clk 0:00:18]}  Ke7 {[%clk 0:00:42]} 34. Re1 {[%clk 0:00:18]}  Rg8+ {[%clk 0:00:37]} 35. Kh6 {[%clk 0:00:17]}  Rxc3 {[%clk 0:00:34]} 36. Rf4 {[%clk 0:00:17]}  Rh8+ {[%clk 0:00:24]} 37. Kg7 {[%clk 0:00:16]}  Rh7+ {[%clk 0:00:23]} 38. Kg8 {[%clk 0:00:16]}  Rg3+ {[%clk 0:00:23]} 39. Rg4 {[%clk 0:00:16]}  Rxg4# {[%clk 0:00:23]} 0-1


[Site "https://www.chess.com"]